[Event "December 5 Late 2023"]
[Site "https://www.chess.com"]
[Date "2023.12.05"]
[Round "5"]
[White "Garcia Ramos, Daniel"]
[Black "Troff, Kayden"]
[Result "0-1"]
[Board "54"]
[TimeControl "180+1"]
[WhiteFideId "32010311"]
[BlackFideId "2047896"]
[WhiteElo "2588"]
[BlackElo "2789"]
[WhiteTeam "ESP"]
[BlackTeam "USA"]
[WhiteClock "0:00:03"]
[BlackClock "0:00:07"]

1. e4 {[%clk 0:03:00]}  c5 {[%clk 0:02:56]} 2. Nf3 {[%clk 0:02:59]}  g6 {[%clk 0:02:56]} 3. d4 {[%clk 0:02:58]}  cxd4 {[%clk 0:02:57]} 4. Qxd4 {[%clk 0:02:59]}  Nf6 {[%clk 0:02:57]} 5. Nc3 {[%clk 0:02:59]}  Nc6 {[%clk 0:02:57]} 6. Qa4 {[%clk 0:03:00]}  d6 {[%clk 0:02:57]} 7. e5 {[%clk 0:03:00]}  dxe5 {[%clk 0:02:58]} 8. Nxe5 {[%clk 0:03:01]}  Bd7 {[%clk 0:02:58]} 9. Nxd7 {[%clk 0:03:01]}  Nxd7 {[%clk 0:02:59]} 10. Be3 {[%clk 0:03:00]}  Bg7 {[%clk 0:02:59]} 11. Rd1 {[%clk 0:02:59]}  O-O {[%clk 0:02:55]} 12. Be2 {[%clk 0:02:55]}  Nb6 {[%clk 0:02:50]} 13. Qe4 {[%clk 0:02:29]}  Qc7 {[%clk 0:02:38]} 14. O-O {[%clk 0:02:18]}  Qe5 {[%clk 0:02:14]} 15. Qh4 {[%clk 0:02:03]}  Qf5 {[%clk 0:02:06]} 16. Bd3 {[%clk 0:01:59]}  Qa5 {[%clk 0:02:05]} 17. Ne4 {[%clk 0:01:53]}  Qxa2 {[%clk 0:02:00]} 18. b3 {[%clk 0:01:28]}  Nd5 {[%clk 0:01:33]} 19. Bh6 {[%clk 0:01:22]}  Nf6 {[%clk 0:01:30]} 20. Bxg7 {[%clk 0:00:53]}  Kxg7 {[%clk 0:01:30]} 21. Nxf6 {[%clk 0:00:54]}  exf6 {[%clk 0:01:31]} 22. Be4 {[%clk 0:00:52]}  Qa6 {[%clk 0:01:15]} 23. Rd6 {[%clk 0:00:51]}  f5 {[%clk 0:00:51]} 24. Qf6+ {[%clk 0:00:44]}  Kg8 {[%clk 0:00:50]} 25. Bd5 {[%clk 0:00:40]}  Rae8 {[%clk 0:00:28]} 26. h4 {[%clk 0:00:26]}  Qe2 {[%clk 0:00:17]} 27. Bxc6 {[%clk 0:00:08]}  bxc6 {[%clk 0:00:17]} 28. Rxc6 {[%clk 0:00:08]}  Rc8 {[%clk 0:00:16]} 29. c4 {[%clk 0:00:04]}  Rb8 {[%clk 0:00:16]} 30. c5 {[%clk 0:00:03]}  Rxb3 {[%clk 0:00:16]} 31. Rc7 {[%clk 0:00:03]}  Qe6 {[%clk 0:00:14]} 32. Qd4 {[%clk 0:00:02]}  Re8 {[%clk 0:00:12]} 33. Rd7 {[%clk 0:00:01]}  Qc6 {[%clk 0:00:08]} 34. Rd6 {[%clk 0:00:01]}  Qb5 {[%clk 0:00:09]} 35. g3 {[%clk 0:00:01]}  Rb4 {[%clk 0:00:08]} 36. Qf6 {[%clk 0:00:01]}  Rc4 {[%clk 0:00:07]} 37. Rd8 {[%clk 0:00:01]}  Rxc5 {[%clk 0:00:06]} 38. Rxe8+ {[%clk 0:00:01]}  Qxe8 {[%clk 0:00:07]} 39. Qd6 {[%clk 0:00:02]}  Rc6 {[%clk 0:00:07]} 40. Qd4 {[%clk 0:00:02]}  Qe7 {[%clk 0:00:07]} 41. h5 {[%clk 0:00:02]}  gxh5 {[%clk 0:00:07]} 42. Rd1 {[%clk 0:00:02]}  Rg6 {[%clk 0:00:06]} 43. Qc4 {[%clk 0:00:01]}  h4 {[%clk 0:00:06]} 44. Qf4 {[%clk 0:00:01]}  hxg3 {[%clk 0:00:06]} 45. fxg3 {[%clk 0:00:02]}  Kg7 {[%clk 0:00:06]} 46. Kh2 {[%clk 0:00:02]}  Qg5 {[%clk 0:00:06]} 47. Qe5+ {[%clk 0:00:02]}  Kh6 {[%clk 0:00:07]} 48. Rg1 {[%clk 0:00:02]}  Qh5+ {[%clk 0:00:07]} 49. Kg2 {[%clk 0:00:02]}  Re6 {[%clk 0:00:06]} 50. Qf4+ {[%clk 0:00:02]}  Kg6 {[%clk 0:00:07]} 51. Rh1 {[%clk 0:00:02]}  Re2+ {[%clk 0:00:07]} 52. Kg1 {[%clk 0:00:03]}  Re1+ {[%clk 0:00:07]} 53. Kf2 {[%clk 0:00:03]}  Qe2# {[%clk 0:00:07]} 0-1

[Event "December 5 Late 2023"]
[Site "https://www.chess.com"]
[Date "2023.12.05"]
[Round "5"]
[White "Rastbod, Ali"]
[Black "Rangel, Daniel"]
[Result "0-1"]
[Board "55"]
[TimeControl "180+1"]
[WhiteFideId "12567477"]
[BlackFideId "2124475"]
[WhiteElo "2758"]
[BlackElo "2548"]
[WhiteTeam "IRI"]
[BlackTeam "BRA"]
[WhiteClock "0:00:05"]
[BlackClock "0:00:13"]

1. Nf3 {[%clk 0:02:58]}  Nf6 {[%clk 0:02:58]} 2. b3 {[%clk 0:02:58]}  e6 {[%clk 0:02:58]} 3. Bb2 {[%clk 0:02:59]}  d5 {[%clk 0:02:59]} 4. g3 {[%clk 0:03:00]}  Be7 {[%clk 0:02:59]} 5. Bg2 {[%clk 0:03:00]}  O-O {[%clk 0:02:59]} 6. O-O {[%clk 0:03:01]}  c6 {[%clk 0:02:56]} 7. d3 {[%clk 0:02:59]}  a5 {[%clk 0:02:53]} 8. a3 {[%clk 0:02:59]}  b6 {[%clk 0:02:51]} 9. Nbd2 {[%clk 0:02:59]}  Ba6 {[%clk 0:02:50]} 10. Re1 {[%clk 0:02:59]}  Nbd7 {[%clk 0:02:39]} 11. e4 {[%clk 0:03:00]}  dxe4 {[%clk 0:02:39]} 12. dxe4 {[%clk 0:03:01]}  Qb8 {[%clk 0:02:17]} 13. e5 {[%clk 0:02:46]}  Nd5 {[%clk 0:02:16]} 14. c4 {[%clk 0:02:45]}  Nc7 {[%clk 0:02:15]} 15. Ne4 {[%clk 0:02:43]}  Nc5 {[%clk 0:02:14]} 16. Nf6+ {[%clk 0:02:31]}  Kh8 {[%clk 0:01:46]} 17. Ng5 {[%clk 0:02:20]}  h6 {[%clk 0:01:19]} 18. Qh5 {[%clk 0:02:18]}  Nd3 {[%clk 0:01:07]} 19. Be4 {[%clk 0:01:41]}  Bxf6 {[%clk 0:00:26]} 20. exf6 {[%clk 0:01:39]}  Nxb2 {[%clk 0:00:26]} 21. Nxf7+ {[%clk 0:01:31]}  Rxf7 {[%clk 0:00:24]} 22. Qg6 {[%clk 0:01:21]}  Qg8 {[%clk 0:00:17]} 23. fxg7+ {[%clk 0:01:05]}  Qxg7 {[%clk 0:00:18]} 24. Qh5 {[%clk 0:01:05]}  Raf8 {[%clk 0:00:16]} 25. Rf1 {[%clk 0:01:06]}  a4 {[%clk 0:00:15]} 26. Qe2 {[%clk 0:00:45]}  axb3 {[%clk 0:00:13]} 27. Rac1 {[%clk 0:00:46]}  Nxc4 {[%clk 0:00:12]} 28. Rxc4 {[%clk 0:00:45]}  Bxc4 {[%clk 0:00:13]} 29. Qxc4 {[%clk 0:00:46]}  b2 {[%clk 0:00:14]} 30. Bb1 {[%clk 0:00:44]}  Nd5 {[%clk 0:00:14]} 31. Qxc6 {[%clk 0:00:42]}  Qd4 {[%clk 0:00:13]} 32. Qxe6 {[%clk 0:00:40]}  Rf6 {[%clk 0:00:13]} 33. Qd7 {[%clk 0:00:36]}  R8f7 {[%clk 0:00:12]} 34. Qc8+ {[%clk 0:00:28]}  Kg7 {[%clk 0:00:13]} 35. Qc2 {[%clk 0:00:28]}  Rxf2 {[%clk 0:00:10]} 36. Rxf2 {[%clk 0:00:05]}  Qxf2+ {[%clk 0:00:11]} 37. Qxf2 {[%clk 0:00:05]}  Rxf2 {[%clk 0:00:11]} 38. Kxf2 {[%clk 0:00:06]}  Nc3 {[%clk 0:00:12]} 39. Bc2 {[%clk 0:00:07]}  b1=Q {[%clk 0:00:12]} 40. Bxb1 {[%clk 0:00:07]}  Nxb1 {[%clk 0:00:13]} 41. a4 {[%clk 0:00:08]}  Nc3 {[%clk 0:00:13]} 42. a5 {[%clk 0:00:09]}  bxa5 {[%clk 0:00:13]} 43. Ke3 {[%clk 0:00:10]}  Nd5+ {[%clk 0:00:12]} 44. Kd3 {[%clk 0:00:10]}  Nf6 {[%clk 0:00:12]} 45. Kc4 {[%clk 0:00:05]}  Kg6 {[%clk 0:00:13]} 0-1

[Event "December 5 Late 2023"]
[Site "https://www.chess.com"]
[Date "2023.12.05"]
[Round "5"]
[White "Krzywda, Andrzej"]
[Black "Skvortsov, Andrei"]
[Result "0-1"]
[Board "56"]
[TimeControl "180+1"]
[WhiteFideId "1114565"]
[BlackFideId "24108600"]
[WhiteElo "2527"]
[BlackElo "2751"]
[WhiteTeam "POL"]
[BlackTeam "MNE"]
[WhiteClock "0:00:00"]
[BlackClock "0:00:58"]

1. e4 {[%clk 0:03:00]}  c5 {[%clk 0:02:56]} 2. Nf3 {[%clk 0:02:59]}  d6 {[%clk 0:02:56]} 3. d4 {[%clk 0:03:00]}  cxd4 {[%clk 0:02:57]} 4. Nxd4 {[%clk 0:03:00]}  Nf6 {[%clk 0:02:58]} 5. Nc3 {[%clk 0:03:01]}  g6 {[%clk 0:02:59]} 6. Be3 {[%clk 0:03:01]}  Bg7 {[%clk 0:02:59]} 7. f3 {[%clk 0:03:02]}  O-O {[%clk 0:03:00]} 8. Qd2 {[%clk 0:03:03]}  d5 {[%clk 0:03:00]} 9. exd5 {[%clk 0:02:41]}  Nxd5 {[%clk 0:03:01]} 10. Nxd5 {[%clk 0:02:24]}  Qxd5 {[%clk 0:03:02]} 11. c4 {[%clk 0:02:23]}  Qd7 {[%clk 0:03:02]} 12. Rd1 {[%clk 0:02:17]}  Nc6 {[%clk 0:03:02]} 13. Be2 {[%clk 0:02:08]}  Nxd4 {[%clk 0:02:58]} 14. Bxd4 {[%clk 0:02:08]}  Bxd4 {[%clk 0:02:57]} 15. Qxd4 {[%clk 0:02:08]}  Qe6 {[%clk 0:02:56]} 16. Kf2 {[%clk 0:02:00]}  Qc6 {[%clk 0:02:50]} 17. f4 {[%clk 0:01:49]}  Be6 {[%clk 0:02:49]} 18. b3 {[%clk 0:01:34]}  Qc7 {[%clk 0:02:49]} 19. Bf3 {[%clk 0:01:25]}  Rab8 {[%clk 0:02:49]} 20. g3 {[%clk 0:01:12]}  Qa5 {[%clk 0:02:49]} 21. a4 {[%clk 0:01:06]}  Qb4 {[%clk 0:02:47]} 22. Qe3 {[%clk 0:01:02]}  a6 {[%clk 0:02:45]} 23. Rd4 {[%clk 0:00:54]}  Qa3 {[%clk 0:02:37]} 24. Rhd1 {[%clk 0:00:29]}  b5 {[%clk 0:02:36]} 25. cxb5 {[%clk 0:00:29]}  axb5 {[%clk 0:02:37]} 26. axb5 {[%clk 0:00:28]}  Rxb5 {[%clk 0:02:37]} 27. R1d3 {[%clk 0:00:28]}  Rxb3 {[%clk 0:02:36]} 28. Rxb3 {[%clk 0:00:28]}  Qxb3 {[%clk 0:02:37]} 29. Qxb3 {[%clk 0:00:27]}  Bxb3 {[%clk 0:02:38]} 30. Rd7 {[%clk 0:00:27]}  e6 {[%clk 0:02:35]} 31. Rb7 {[%clk 0:00:27]}  Ba4 {[%clk 0:02:33]} 32. Ra7 {[%clk 0:00:27]}  Bb5 {[%clk 0:02:33]} 33. Rb7 {[%clk 0:00:27]}  Ba6 {[%clk 0:02:33]} 34. Ra7 {[%clk 0:00:27]}  Bc8 {[%clk 0:02:34]} 35. Ra8 {[%clk 0:00:27]}  h5 {[%clk 0:02:32]} 36. h4 {[%clk 0:00:26]}  Bd7 {[%clk 0:02:31]} 37. Rxf8+ {[%clk 0:00:26]}  Kxf8 {[%clk 0:02:30]} 38. Ke3 {[%clk 0:00:26]}  Ke7 {[%clk 0:02:30]} 39. Kd4 {[%clk 0:00:26]}  Kd6 {[%clk 0:02:30]} 40. Bd1 {[%clk 0:00:25]}  Be8 {[%clk 0:02:26]} 41. Bb3 {[%clk 0:00:25]}  Bc6 {[%clk 0:02:26]} 42. Ba2 {[%clk 0:00:25]}  Bf3 {[%clk 0:02:26]} 43. Bb3 {[%clk 0:00:25]}  Bg4 {[%clk 0:02:26]} 44. Bc2 {[%clk 0:00:24]}  Bf5 {[%clk 0:02:25]} 45. Ba4 {[%clk 0:00:24]}  f6 {[%clk 0:02:24]} 46. Be8 {[%clk 0:00:24]}  e5+ {[%clk 0:02:24]} 47. fxe5+ {[%clk 0:00:24]}  fxe5+ {[%clk 0:02:25]} 48. Ke3 {[%clk 0:00:25]}  Kc5 {[%clk 0:02:23]} 49. Bf7 {[%clk 0:00:19]}  Kb4 {[%clk 0:02:23]} 50. Be8 {[%clk 0:00:18]}  Kc3 {[%clk 0:02:23]} 51. Bf7 {[%clk 0:00:18]}  Kc2 {[%clk 0:02:23]} 52. Bc4 {[%clk 0:00:19]}  Kc3 {[%clk 0:02:20]} 53. Bb5 {[%clk 0:00:18]}  Kb4 {[%clk 0:02:21]} 54. Ba6 {[%clk 0:00:19]}  Kc5 {[%clk 0:02:21]} 55. Be2 {[%clk 0:00:19]}  Kd6 {[%clk 0:01:37]} 56. Bf1 {[%clk 0:00:19]}  Ke6 {[%clk 0:01:36]} 57. Bb5 {[%clk 0:00:19]}  Kf6 {[%clk 0:01:37]} 58. Be8 {[%clk 0:00:19]}  Be6 {[%clk 0:01:30]} 59. Ke4 {[%clk 0:00:16]}  Bb3 {[%clk 0:01:29]} 60. Bb5 {[%clk 0:00:16]}  Bc2+ {[%clk 0:01:29]} 61. Ke3 {[%clk 0:00:16]}  Ke7 {[%clk 0:01:25]} 62. Be2 {[%clk 0:00:16]}  Ke6 {[%clk 0:01:25]} 63. Bc4+ {[%clk 0:00:16]}  Kf5 {[%clk 0:01:25]} 64. Be2 {[%clk 0:00:15]}  e4 {[%clk 0:01:11]} 65. Bf1 {[%clk 0:00:12]}  Kg4 {[%clk 0:01:11]} 66. Kf2 {[%clk 0:00:06]}  e3+ {[%clk 0:01:05]} 67. Kxe3 {[%clk 0:00:02]}  Kxg3 {[%clk 0:01:05]} 68. Bc4 {[%clk 0:00:01]}  Kxh4 {[%clk 0:01:03]} 69. Kf3 {[%clk 0:00:01]}  g5 {[%clk 0:01:03]} 70. Kg2 {[%clk 0:00:02]}  Kg4 {[%clk 0:01:02]} 71. Kh2 {[%clk 0:00:02]}  Kf4 {[%clk 0:01:02]} 72. Be2 {[%clk 0:00:03]}  g4 {[%clk 0:01:01]} 73. Bc4 {[%clk 0:00:02]}  h4 {[%clk 0:01:01]} 74. Bd5 {[%clk 0:00:02]}  Be4 {[%clk 0:01:01]} 75. Be6 {[%clk 0:00:02]}  g3+ {[%clk 0:00:59]} 76. Kg1 {[%clk 0:00:03]}  Bf5 {[%clk 0:00:59]} 77. Bd5 {[%clk 0:00:00]}  h3 {[%clk 0:00:58]} 0-1

[Event "December 5 Late 2023"]
[Site "https://www.chess.com"]
[Date "2023.12.05"]
[Round "5"]
[White "Keleberda, Tymur"]
[Black "Khruschiov, Alexey"]
[Result "1-0"]
[Board "57"]
[TimeControl "180+1"]
[WhiteFideId "14174294"]
[BlackFideId "13900544"]
[WhiteElo "2497"]
[BlackElo "2730"]
[WhiteTeam "CAN"]
[BlackTeam "MDA"]
[WhiteClock "0:00:07"]
[BlackClock "0:00:15"]

1. e4 {[%clk 0:02:59]}  g6 {[%clk 0:03:00]} 2. d4 {[%clk 0:02:57]}  Bg7 {[%clk 0:03:01]} 3. Bc4 {[%clk 0:02:57]}  c6 {[%clk 0:03:02]} 4. Bb3 {[%clk 0:02:57]}  d5 {[%clk 0:03:03]} 5. e5 {[%clk 0:02:54]}  h5 {[%clk 0:02:58]} 6. h3 {[%clk 0:02:52]}  Bf5 {[%clk 0:02:57]} 7. Nd2 {[%clk 0:02:48]}  a6 {[%clk 0:02:57]} 8. c4 {[%clk 0:02:37]}  e6 {[%clk 0:02:55]} 9. c5 {[%clk 0:02:28]}  Nd7 {[%clk 0:02:50]} 10. Ngf3 {[%clk 0:02:21]}  b6 {[%clk 0:02:50]} 11. cxb6 {[%clk 0:02:21]}  Qxb6 {[%clk 0:02:50]} 12. O-O {[%clk 0:02:21]}  Ne7 {[%clk 0:02:47]} 13. Ba4 {[%clk 0:02:12]}  Bd3 {[%clk 0:02:41]} 14. Re1 {[%clk 0:02:11]}  Bb5 {[%clk 0:02:41]} 15. Bc2 {[%clk 0:02:07]}  c5 {[%clk 0:02:41]} 16. a4 {[%clk 0:01:33]}  Bc6 {[%clk 0:02:38]} 17. a5 {[%clk 0:01:31]}  Qb8 {[%clk 0:02:37]} 18. dxc5 {[%clk 0:01:24]}  Nxc5 {[%clk 0:02:38]} 19. b4 {[%clk 0:01:16]}  Nd7 {[%clk 0:02:37]} 20. Bb2 {[%clk 0:01:01]}  O-O {[%clk 0:02:35]} 21. Bc3 {[%clk 0:00:58]}  Bb5 {[%clk 0:02:32]} 22. Nb3 {[%clk 0:00:52]}  Rc8 {[%clk 0:02:31]} 23. Bd4 {[%clk 0:00:50]}  Rc4 {[%clk 0:02:24]} 24. Nc5 {[%clk 0:00:47]}  Qc7 {[%clk 0:02:01]} 25. Nxd7 {[%clk 0:00:43]}  Qxd7 {[%clk 0:02:01]} 26. Bc5 {[%clk 0:00:42]}  Nc6 {[%clk 0:01:53]} 27. Qd2 {[%clk 0:00:30]}  d4 {[%clk 0:01:11]} 28. Bd3 {[%clk 0:00:29]}  Rxc5 {[%clk 0:01:10]} 29. bxc5 {[%clk 0:00:28]}  Bxd3 {[%clk 0:01:09]} 30. Qxd3 {[%clk 0:00:29]}  Rd8 {[%clk 0:01:07]} 31. Rab1 {[%clk 0:00:26]}  Qd5 {[%clk 0:01:07]} 32. Qxa6 {[%clk 0:00:22]}  d3 {[%clk 0:01:03]} 33. Rbd1 {[%clk 0:00:22]}  Bxe5 {[%clk 0:01:02]} 34. Re3 {[%clk 0:00:14]}  Bd4 {[%clk 0:00:54]} 35. Nxd4 {[%clk 0:00:11]}  Nxd4 {[%clk 0:00:55]} 36. Rexd3 {[%clk 0:00:11]}  e5 {[%clk 0:00:48]} 37. Qb6 {[%clk 0:00:11]}  Rc8 {[%clk 0:00:41]} 38. a6 {[%clk 0:00:12]}  Qxc5 {[%clk 0:00:18]} 39. Qxc5 {[%clk 0:00:11]}  Rxc5 {[%clk 0:00:19]} 40. Ra1 {[%clk 0:00:11]}  Rc8 {[%clk 0:00:18]} 41. a7 {[%clk 0:00:11]}  Ra8 {[%clk 0:00:18]} 42. Ra4 {[%clk 0:00:08]}  Kg7 {[%clk 0:00:18]} 43. Rd2 {[%clk 0:00:06]}  Nb5 {[%clk 0:00:17]} 44. Rd7 {[%clk 0:00:05]}  Kf6 {[%clk 0:00:17]} 45. Rb7 {[%clk 0:00:06]}  Nc3 {[%clk 0:00:16]} 46. Ra6+ {[%clk 0:00:06]}  Kf5 {[%clk 0:00:16]} 47. Rb8 {[%clk 0:00:07]}  Ne2+ {[%clk 0:00:17]} 48. Kf1 {[%clk 0:00:06]}  Rxa7 {[%clk 0:00:15]} 49. Rxa7 {[%clk 0:00:07]} 1-0

[Event "December 5 Late 2023"]
[Site "https://www.chess.com"]
[Date "2023.12.05"]
[Round "5"]
[White "Zimmermann, Ulrich"]
[Black "Djokic, Mihailo"]
[Result "0-1"]
[Board "58"]
[TimeControl "180+1"]
[WhiteFideId "24654523"]
[BlackFideId "976440"]
[WhiteElo "2431"]
[BlackElo "2710"]
[WhiteTeam "GER"]
[BlackTeam "SRB"]
[WhiteClock "0:00:00"]
[BlackClock "0:00:04"]

1. Nf3 {[%clk 0:03:00]}  Nf6 {[%clk 0:02:59]} 2. g3 {[%clk 0:03:01]}  g6 {[%clk 0:03:00]} 3. Bg2 {[%clk 0:03:02]}  Bg7 {[%clk 0:03:01]} 4. O-O {[%clk 0:03:02]}  O-O {[%clk 0:03:01]} 5. d3 {[%clk 0:03:02]}  d6 {[%clk 0:03:02]} 6. b4 {[%clk 0:03:03]}  e5 {[%clk 0:03:03]} 7. Bb2 {[%clk 0:03:03]}  Re8 {[%clk 0:03:02]} 8. c4 {[%clk 0:03:03]}  a5 {[%clk 0:03:03]} 9. bxa5 {[%clk 0:02:59]}  Nc6 {[%clk 0:03:03]} 10. Nbd2 {[%clk 0:02:55]}  Rxa5 {[%clk 0:02:59]} 11. Nb3 {[%clk 0:02:52]}  Ra7 {[%clk 0:02:58]} 12. Nfd2 {[%clk 0:02:53]}  Bd7 {[%clk 0:02:57]} 13. a4 {[%clk 0:02:53]}  Qa8 {[%clk 0:02:57]} 14. a5 {[%clk 0:02:45]}  Nxa5 {[%clk 0:02:57]} 15. Nxa5 {[%clk 0:02:45]}  Rxa5 {[%clk 0:02:58]} 16. Qb3 {[%clk 0:02:36]}  Rb8 {[%clk 0:02:50]} 17. Bc3 {[%clk 0:02:27]}  Ra4 {[%clk 0:02:47]} 18. Rxa4 {[%clk 0:02:15]}  Qxa4 {[%clk 0:02:42]} 19. Qb2 {[%clk 0:02:13]}  Bg4 {[%clk 0:02:24]} 20. Ra1 {[%clk 0:02:07]}  Qd7 {[%clk 0:02:18]} 21. Nb3 {[%clk 0:02:04]}  b5 {[%clk 0:02:12]} 22. c5 {[%clk 0:01:57]}  b4 {[%clk 0:02:09]} 23. Be1 {[%clk 0:01:54]}  e4 {[%clk 0:01:58]} 24. d4 {[%clk 0:01:50]}  Nd5 {[%clk 0:01:44]} 25. Bxe4 {[%clk 0:01:42]}  Nc3 {[%clk 0:01:43]} 26. Bxc3 {[%clk 0:01:25]}  bxc3 {[%clk 0:01:44]} 27. Qxc3 {[%clk 0:01:20]}  dxc5 {[%clk 0:01:39]} 28. e3 {[%clk 0:01:19]}  cxd4 {[%clk 0:01:38]} 29. Nxd4 {[%clk 0:01:18]}  Rd8 {[%clk 0:01:15]} 30. Ra8 {[%clk 0:01:09]}  Rxa8 {[%clk 0:01:13]} 31. Bxa8 {[%clk 0:01:10]}  Qa4 {[%clk 0:01:14]} 32. Qc6 {[%clk 0:01:04]}  Qd1+ {[%clk 0:01:05]} 33. Kg2 {[%clk 0:01:04]}  Bxd4 {[%clk 0:01:06]} 34. exd4 {[%clk 0:01:00]}  Qxd4 {[%clk 0:01:01]} 35. Qxc7 {[%clk 0:00:52]}  h5 {[%clk 0:00:49]} 36. h3 {[%clk 0:00:49]}  Be6 {[%clk 0:00:47]} 37. h4 {[%clk 0:00:40]}  Kh7 {[%clk 0:00:46]} 38. Qf4 {[%clk 0:00:30]}  Qa1 {[%clk 0:00:38]} 39. Bf3 {[%clk 0:00:28]}  Kg7 {[%clk 0:00:37]} 40. Qe3 {[%clk 0:00:27]}  Bf5 {[%clk 0:00:34]} 41. Qf4 {[%clk 0:00:27]}  Qc3 {[%clk 0:00:32]} 42. Qg5 {[%clk 0:00:23]}  Qa1 {[%clk 0:00:30]} 43. Qe3 {[%clk 0:00:23]}  Qb2 {[%clk 0:00:27]} 44. Qg5 {[%clk 0:00:22]}  Bd3 {[%clk 0:00:25]} 45. Qe3 {[%clk 0:00:10]}  Qb1 {[%clk 0:00:25]} 46. Qd4+ {[%clk 0:00:09]}  Kh7 {[%clk 0:00:24]} 47. Kh2 {[%clk 0:00:10]}  Qf1 {[%clk 0:00:20]} 48. Bg2 {[%clk 0:00:10]}  Qe2 {[%clk 0:00:21]} 49. Qf4 {[%clk 0:00:11]}  Bf5 {[%clk 0:00:20]} 50. Bh3 {[%clk 0:00:09]}  Bxh3 {[%clk 0:00:04]} 51. Qxf7+ {[%clk 0:00:09]}  Kh6 {[%clk 0:00:05]} 52. Qf4+ {[%clk 0:00:08]}  Kg7 {[%clk 0:00:05]} 53. Kxh3 {[%clk 0:00:09]}  Qf1+ {[%clk 0:00:05]} 54. Kh2 {[%clk 0:00:09]}  Qe1 {[%clk 0:00:05]} 55. Qe3 {[%clk 0:00:09]}  Qf1 {[%clk 0:00:05]} 56. Qf3 {[%clk 0:00:09]}  Kh7 {[%clk 0:00:05]} 57. Qb7+ {[%clk 0:00:09]}  Kh6 {[%clk 0:00:04]} 58. Qf3 {[%clk 0:00:09]}  Kh7 {[%clk 0:00:05]} 59. Qf4 {[%clk 0:00:10]}  Kg7 {[%clk 0:00:04]} 60. Qe5+ {[%clk 0:00:09]}  Kh7 {[%clk 0:00:04]} 61. Qe7+ {[%clk 0:00:09]}  Kg8 {[%clk 0:00:04]} 62. Qd8+ {[%clk 0:00:05]}  Kg7 {[%clk 0:00:04]} 63. Qc7+ {[%clk 0:00:04]}  Kh6 {[%clk 0:00:05]} 64. Qf4+ {[%clk 0:00:03]}  Kh7 {[%clk 0:00:05]} 65. g4 {[%clk 0:00:02]}  hxg4 {[%clk 0:00:05]} 66. Qf7+ {[%clk 0:00:02]}  Kh6 {[%clk 0:00:05]} 67. Qf4+ {[%clk 0:00:01]}  Kg7 {[%clk 0:00:05]} 68. Qe5+ {[%clk 0:00:01]}  Kf7 {[%clk 0:00:06]} 69. Qd5+ {[%clk 0:00:01]}  Kf6 {[%clk 0:00:06]} 70. Qd6+ {[%clk 0:00:01]}  Kf5 {[%clk 0:00:06]} 71. Qd5+ {[%clk 0:00:02]}  Kf4 {[%clk 0:00:07]} 72. Qd4+ {[%clk 0:00:02]}  Kf5 {[%clk 0:00:07]} 73. Qd5+ {[%clk 0:00:02]}  Kf6 {[%clk 0:00:06]} 74. Qd6+ {[%clk 0:00:02]}  Kg7 {[%clk 0:00:07]} 75. Qd7+ {[%clk 0:00:02]}  Kg8 {[%clk 0:00:08]} 76. Qe6+ {[%clk 0:00:01]}  Kh7 {[%clk 0:00:08]} 77. Qe7+ {[%clk 0:00:02]}  Kh6 {[%clk 0:00:08]} 78. Qg5+ {[%clk 0:00:02]}  Kg7 {[%clk 0:00:08]} 79. Qe7+ {[%clk 0:00:03]}  Kg8 {[%clk 0:00:09]} 80. Qg5 {[%clk 0:00:03]}  Qxf2+ {[%clk 0:00:09]} 81. Kh1 {[%clk 0:00:02]}  Qf3+ {[%clk 0:00:09]} 82. Kh2 {[%clk 0:00:03]}  Qh3+ {[%clk 0:00:09]} 83. Kg1 {[%clk 0:00:04]}  Qg3+ {[%clk 0:00:10]} 84. Kh1 {[%clk 0:00:04]}  Qf3+ {[%clk 0:00:10]} 85. Kh2 {[%clk 0:00:05]}  Kf7 {[%clk 0:00:10]} 86. Qe5 {[%clk 0:00:04]}  Qf2+ {[%clk 0:00:10]} 87. Kh1 {[%clk 0:00:04]}  Qxh4+ {[%clk 0:00:10]} 88. Kg2 {[%clk 0:00:04]}  Qh3+ {[%clk 0:00:10]} 89. Kg1 {[%clk 0:00:04]}  g3 {[%clk 0:00:09]} 90. Qc7+ {[%clk 0:00:03]}  Kf6 {[%clk 0:00:09]} 91. Qc6+ {[%clk 0:00:04]}  Kg5 {[%clk 0:00:10]} 92. Qc5+ {[%clk 0:00:04]}  Kh6 {[%clk 0:00:10]} 93. Qe3+ {[%clk 0:00:04]}  Kh5 {[%clk 0:00:10]} 94. Qe5+ {[%clk 0:00:04]}  Qf5 {[%clk 0:00:05]} 95. Qh8+ {[%clk 0:00:05]}  Kg4 {[%clk 0:00:05]} 96. Qd4+ {[%clk 0:00:05]}  Qf4 {[%clk 0:00:05]} 97. Qd7+ {[%clk 0:00:04]}  Qf5 {[%clk 0:00:05]} 98. Qd4+ {[%clk 0:00:04]}  Kg5 {[%clk 0:00:06]} 99. Qe3+ {[%clk 0:00:04]}  Qf4 {[%clk 0:00:06]} 100. Qc5+ {[%clk 0:00:04]}  Kg4 {[%clk 0:00:04]} 101. Qc8+ {[%clk 0:00:04]}  Qf5 {[%clk 0:00:03]} 102. Qc4+ {[%clk 0:00:04]}  Kh5 {[%clk 0:00:03]} 103. Qe2+ {[%clk 0:00:03]}  Kh4 {[%clk 0:00:03]} 104. Qc4+ {[%clk 0:00:00]}  Qg4 {[%clk 0:00:04]} 0-1

[Event "December 5 Late 2023"]
[Site "https://www.chess.com"]
[Date "2023.12.05"]
[Round "5"]
[White "Panesar Vedant"]
[Black "Saito, Vinicius"]
[Result "1-0"]
[Board "59"]
[TimeControl "180+1"]
[WhiteFideId "35033018"]
[BlackFideId "2113384"]
[WhiteElo "2701"]
[BlackElo "2422"]
[WhiteTeam "IND"]
[BlackTeam "BRA"]
[WhiteClock "0:02:20"]
[BlackClock "0:01:39"]

1. e4 {[%clk 0:03:00]}  c5 {[%clk 0:02:56]} 2. Nf3 {[%clk 0:03:00]}  Nc6 {[%clk 0:02:56]} 3. Bb5 {[%clk 0:03:00]}  g6 {[%clk 0:02:56]} 4. O-O {[%clk 0:03:00]}  Bg7 {[%clk 0:02:56]} 5. c3 {[%clk 0:03:01]}  Nf6 {[%clk 0:02:56]} 6. Re1 {[%clk 0:03:01]}  O-O {[%clk 0:02:56]} 7. d4 {[%clk 0:03:02]}  cxd4 {[%clk 0:02:56]} 8. cxd4 {[%clk 0:03:03]}  d5 {[%clk 0:02:56]} 9. e5 {[%clk 0:03:04]}  Ne4 {[%clk 0:02:57]} 10. Nc3 {[%clk 0:03:04]}  Nxc3 {[%clk 0:02:57]} 11. bxc3 {[%clk 0:03:05]}  Qc7 {[%clk 0:02:57]} 12. h3 {[%clk 0:03:02]}  a6 {[%clk 0:02:57]} 13. Bd3 {[%clk 0:03:02]}  Na5 {[%clk 0:02:57]} 14. Bd2 {[%clk 0:02:57]}  Nc4 {[%clk 0:02:56]} 15. Bg5 {[%clk 0:02:57]}  b5 {[%clk 0:02:46]} 16. Qc1 {[%clk 0:02:53]}  f6 {[%clk 0:02:46]} 17. Bh6 {[%clk 0:02:44]}  fxe5 {[%clk 0:02:06]} 18. Bxg7 {[%clk 0:02:42]}  Rxf3 {[%clk 0:01:54]} 19. Bxc4 {[%clk 0:02:23]}  dxc4 {[%clk 0:01:49]} 20. Bxe5 {[%clk 0:02:21]}  Qc6 {[%clk 0:01:39]} 21. gxf3 {[%clk 0:02:20]} 1-0

[Event "December 5 Late 2023"]
[Site "https://www.chess.com"]
[Date "2023.12.05"]
[Round "5"]
[White "yaguigor"]
[Black "Solon, Nathan"]
[Result "1-0"]
[Board "61"]
[TimeControl "180+1"]
[BlackFideId "2017229"]
[WhiteElo "2388"]
[BlackElo "2688"]
[BlackTeam "USA"]
[WhiteClock "0:00:40"]
[BlackClock "0:01:27"]

1. e4 {[%clk 0:02:58]}  c5 {[%clk 0:02:59]} 2. Nf3 {[%clk 0:02:58]}  Nf6 {[%clk 0:02:56]} 3. e5 {[%clk 0:02:57]}  Nd5 {[%clk 0:02:55]} 4. Nc3 {[%clk 0:02:58]}  e6 {[%clk 0:02:55]} 5. Nxd5 {[%clk 0:02:56]}  exd5 {[%clk 0:02:56]} 6. d4 {[%clk 0:02:56]}  Nc6 {[%clk 0:02:56]} 7. dxc5 {[%clk 0:02:56]}  Bxc5 {[%clk 0:02:57]} 8. Qxd5 {[%clk 0:02:49]}  d6 {[%clk 0:02:57]} 9. exd6 {[%clk 0:02:11]}  Qb6 {[%clk 0:02:55]} 10. Bc4 {[%clk 0:01:25]}  O-O {[%clk 0:02:41]} 11. O-O {[%clk 0:01:22]}  Be6 {[%clk 0:02:37]} 12. Qe4 {[%clk 0:01:20]}  Qb4 {[%clk 0:02:10]} 13. Ng5 {[%clk 0:01:13]}  g6 {[%clk 0:02:00]} 14. Nxe6 {[%clk 0:00:55]}  fxe6 {[%clk 0:01:58]} 15. Bh6 {[%clk 0:00:50]}  Rf6 {[%clk 0:01:41]} 16. Bxe6+ {[%clk 0:00:48]}  Kh8 {[%clk 0:01:41]} 17. Qxb4 {[%clk 0:00:47]}  Nxb4 {[%clk 0:01:42]} 18. Bb3 {[%clk 0:00:45]}  Bxd6 {[%clk 0:01:36]} 19. Rad1 {[%clk 0:00:42]}  Nc6 {[%clk 0:01:27]} 20. Bg5 {[%clk 0:00:40]} 1-0